fUST/lending_fUST_20241121
["ID","MTS","AMOUNT","RATE_DAILY","PERIOD"]
[342766250,1732121447296,-500.0,0.00025205,2]
[342766251,1732121447306,-544.87,0.00025205,2]
[342766252,1732121447315,-500.0,0.00025205,2]
[342766253,1732121447325,-500.0,0.00025205,2]
[342766254,1732121447334,-1853.93,0.00025205,2]
[342766255,1732121447344,-500.0,0.00025205,2]
[342766256,1732121447356,-926.14,0.00025205,2]
[342766257,1732121447366,-500.0,0.00025205,2]
[342766258,1732121447377,-500.0,0.00025205,2]
[342766259,1732121447388,-500.0,0.00025205,2]
[342766260,1732121447398,-500.0,0.00025205,2]
[342766261,1732121447408,-500.0,0.00025205,2]
[342766262,1732121447418,-500.0,0.00025205,2]
[342766263,1732121447428,-261.76861022,0.00025287,2]
[342766264,1732121447438,-500.0,0.00025305,7]
[342766265,1732121447447,-897.4,0.00025478,2]
[342766266,1732121447457,-500.0,0.00025478,2]
[342766267,1732121447467,-500.0,0.00025479,2]
[342766268,1732121447477,-544.87,0.00025479,2]
[342766269,1732121447487,-500.0,0.00025479,2]
[342766270,1732121447497,-500.0,0.00025479,2]
[342766271,1732121447507,-1853.93,0.00025479,2]
[342766272,1732121447517,-500.0,0.00025479,2]
[342766273,1732121447526,-926.14,0.00025479,2]
[342766274,1732121447536,-500.0,0.00025479,2]
[342766275,1732121447546,-500.0,0.00025479,2]
[342766276,1732121447555,-537.22773314,0.00025479,2]
[342766277,1732121447565,-500.0,0.00025479,2]
[342766278,1732121447574,-500.0,0.00025479,2]
[342766279,1732121447584,-500.0,0.00025479,2]
[342766280,1732121447593,-897.4,0.00025752,2]
[342766281,1732121447607,-327.0985,0.00025752,2]
[342766282,1732121447616,-360.053168,0.00025753,7]
[342766283,1732121447625,-500.0,0.00025753,2]
[342766284,1732121447634,-544.87,0.00025753,2]
[342766285,1732121447644,-500.0,0.00025753,2]
[342766286,1732121447653,-500.0,0.00025753,2]
[342766287,1732121447662,-1853.93,0.00025753,2]
[342766288,1732121447672,-500.0,0.00025753,2]
[342766289,1732121447681,-926.14,0.00025753,2]
[342766290,1732121447690,-500.0,0.00025753,2]
[342766291,1732121447698,-500.0,0.00025753,2]
[342766292,1732121447708,-500.0,0.00025753,2]
[342766293,1732121447716,-500.0,0.00025753,2]
[342766294,1732121447726,-500.0,0.00025753,2]
[342766295,1732121447735,-897.4,0.00026026,2]
[342766296,1732121447744,-500.0,0.00026027,2]
[342766297,1732121447753,-544.87,0.00026027,2]
[342766298,1732121447762,-500.0,0.00026027,2]
[342766299,1732121447771,-500.0,0.00026027,2]
[342766300,1732121447780,-1853.93,0.00026027,2]
[342766301,1732121447790,-500.0,0.00026027,2]
[342766302,1732121447799,-926.14,0.00026027,2]
[342766303,1732121447808,-500.0,0.00026027,2]
[342766304,1732121447817,-500.0,0.00026027,2]
[342766305,1732121447826,-500.0,0.00026027,2]
[342766306,1732121447836,-500.0,0.00026027,2]
[342766307,1732121447845,-500.0,0.00026027,2]
[342766308,1732121447860,-2269.46,0.000261,14]
[342766309,1732121447870,-500.0,0.00026301,2]
[342766310,1732121447879,-544.87,0.00026301,2]
[342766311,1732121447888,-500.0,0.00026301,2]
[342766312,1732121447897,-500.0,0.00026301,2]
[342766313,1732121447906,-1853.93,0.00026301,2]
[342766314,1732121447915,-500.0,0.00026301,2]
[342766315,1732121447924,-926.14,0.00026301,2]
[342766316,1732121447933,-500.0,0.00026301,2]
[342766317,1732121447942,-500.0,0.00026301,2]
[342766318,1732121447952,-466.555,0.0002657,15]
[342766319,1732121447962,-500.0,0.00026575,2]
[342766320,1732121447971,-544.87,0.00026575,2]
[342766321,1732121447981,-582.02600514,0.00026575,2]
[342766322,1732121447991,-500.0,0.00026575,2]
[342766323,1732121448001,-1853.93,0.00026575,2]
[342766324,1732121448011,-575.58,0.00026575,2]
[342766325,1732121448020,-926.14,0.00026575,2]
[342766326,1732121448030,-500.0,0.00026575,2]
[342766327,1732121448040,-500.0,0.00026575,2]
[342766328,1732121448049,-544.0,0.00026848,2]
[342766329,1732121448058,-500.0,0.00026849,2]
[342766330,1732121448068,-544.87,0.00026849,2]
[342766331,1732121448077,-500.0,0.00026849,2]
[342766332,1732121448087,-1853.93,0.00026849,2]
[342766333,1732121448096,-926.14,0.00026849,2]
[342766334,1732121448110,-500.0,0.00026849,2]
[342766335,1732121448123,-500.0,0.00026849,2]
[342766336,1732121448132,-500.0,0.00026949,7]
[342766337,1732121448142,-261.76861022,0.00027021,2]
[342766338,1732121448156,-257.9,0.00027123,2]
[342766339,1732121448165,-544.87,0.00027123,2]
[342766340,1732121448174,-500.0,0.00027123,2]
[342766341,1732121448184,-1853.93,0.00027123,2]
[342766342,1732121448194,-926.14,0.00027123,2]
[342766343,1732121448204,-536.84,0.00027123,2]
[342766344,1732121448213,-500.0,0.00027123,2]
[342766345,1732121448223,-544.87,0.00027397,2]
[342766346,1732121448232,-500.0,0.00027397,2]
[342766347,1732121448242,-1853.93,0.00027397,2]
[342766348,1732121448251,-926.14,0.00027397,2]
[342766349,1732121448260,-387.80598437,0.00027397,2]
[342766350,1732121448269,-3510.365775,0.00027397,120]
[342766351,1732121448279,-544.87,0.00027671,2]
[342766352,1732121448288,-649.04,0.00027671,2]
[342766353,1732121448297,-1853.93,0.00027671,2]
[342766354,1732121448306,-926.14,0.00027671,2]
[342766355,1732121448315,-6422.24,0.000277,14]
[342766356,1732121448324,-360.053168,0.00027945,7]
[342766357,1732121448334,-544.87,0.00027945,2]
[342766358,1732121448354,-1853.93,0.00027945,2]
[342766359,1732121448365,-926.14,0.00027945,2]
[342766360,1732121448374,-1000.0,0.00028184,2]
[342766361,1732121448383,-544.95,0.00028219,2]
[342766362,1732121448393,-1853.97482891,0.00028219,2]
[342766363,1732121448402,-926.23,0.00028219,2]
[342766364,1732121448526,-151.0,0.00028304,7]
[342766365,1732121448536,-500.0,0.00028593,7]
[342766366,1732121448545,-1436.09040827,0.00028678,19]
[342766367,1732121448554,-501.79503939,0.00028724,10]
[342766368,1732121448564,-500.0,0.00028724,10]
[342766369,1732121448574,-261.76861022,0.00028756,2]
[342766370,1732121448584,-201.6033171,0.00028794,2]
[342766371,1732121448594,-151.0,0.00028795,7]
[342766372,1732121448606,-2269.46,0.000288,30]
[342766373,1732121448616,-500.0,0.00028814,7]
[342766374,1732121448626,-150.14,0.00028814,7]
[342766375,1732121448638,-150.16,0.00028814,7]
[342766376,1732121448649,-365.47340389,0.00028845,2]
[342766377,1732121448660,-69498.20214359,0.00028856,2]
[342766378,1732121448750,-335.60267093,0.00021917,2]
[342766379,1732121448760,-1547.02,0.00025205,2]
[342766380,1732121448770,-1547.02,0.00025479,2]
[342766381,1732121448780,-1547.02,0.00025753,2]
[342766382,1732121448790,-4384.32519743,0.00028856,2]
[342766383,1732121448801,-2824.69999999,0.00028856,2]
[342766384,1732121448816,-1547.02,0.00026027,2]
[342766385,1732121448826,-30267.19126907,0.00028856,2]
[342766386,1732121448902,-514.66052577,0.00021917,2]
[342766387,1732121448911,-1547.02,0.00026301,2]
[342766388,1732121448921,-347.11947423,0.00026575,2]
[342766389,1732121448933,-1199.90052577,0.00026575,2]
[342766390,1732121448942,-1547.02,0.00026849,2]
[342766391,1732121448951,-1547.02,0.00027123,2]
[342766392,1732121448961,-1547.02,0.00027397,2]
[342766393,1732121448971,-299.03947427,0.00027671,2]
[342766394,1732121448983,-747.89774787,0.00027671,2]
[342766395,1732121448995,-500.08277786,0.00027671,2]
[342766396,1732121449004,-1547.02,0.00027945,2]
[342766397,1732121449014,-1547.08985138,0.00028219,2]
[342766398,1732121449024,-115548.77410602,0.00028856,2]
[342766399,1732121449033,-330.0,0.00028856,2]
[342766400,1732121449042,-500.0,0.00028873,5]
[342766401,1732121449052,-500.0,0.00028895,5]
[342766402,1732121449061,-317.62,0.00028895,2]
[342766403,1732121449070,-151.0,0.00028953,7]
[342766404,1732121449080,-151.0,0.00028953,7]
[342766405,1732121449089,-151.0,0.00028953,7]
[342766406,1732121449098,-151.0,0.00028953,7]
[342766407,1732121449116,-151.0,0.00028953,7]
[342766408,1732121449126,-151.0,0.00028953,7]
[342766409,1732121449135,-151.0,0.00028953,7]
[342766410,1732121449147,-151.0,0.00028953,7]
[342766411,1732121449158,-151.0,0.00028953,7]
[342766412,1732121449168,-151.0,0.00028953,7]
[342766413,1732121449178,-151.0,0.00028953,7]
[342766414,1732121449188,-151.0,0.00028953,7]
[342766415,1732121449198,-236.954806,0.00028953,7]
[342766416,1732121449207,-151.0,0.00028953,7]
[342766417,1732121449216,-151.0,0.00028953,7]
[342766418,1732121449228,-151.0,0.00028953,7]
[342766419,1732121449238,-151.0,0.00028953,7]
[342766420,1732121449248,-151.0,0.00028953,7]
[342766421,1732121449258,-151.0,0.00028953,7]
[342766422,1732121449268,-217.32279,0.00028953,7]
[342766423,1732121449277,-151.0,0.00028953,7]
[342766424,1732121449287,-151.0,0.00028953,7]
[342766425,1732121449297,-152.790544,0.00028953,7]
[342766426,1732121449307,-189.038901,0.00028953,7]
[342766427,1732121449318,-189.038901,0.00028953,7]
[342766428,1732121449328,-189.038901,0.00028953,7]
[342766429,1732121449338,-189.038901,0.00028953,7]
[342766430,1732121449348,-189.038901,0.00028953,7]
[342766431,1732121449361,-189.038901,0.00028953,7]
[342766432,1732121449371,-189.038901,0.00028953,7]
[342766433,1732121449382,-189.038901,0.00028953,7]
[342766434,1732121449391,-189.038901,0.00028953,7]
[342766435,1732121449400,-189.038901,0.00028953,7]
[342766436,1732121449410,-189.038901,0.00028953,7]
[342766437,1732121449420,-189.038901,0.00028953,7]
[342766438,1732121449429,-189.038901,0.00028953,7]
[342766439,1732121449439,-189.038901,0.00028953,7]
[342766440,1732121449449,-189.038901,0.00028953,7]
[342766441,1732121449459,-189.038901,0.00028953,7]
[342766442,1732121449468,-189.038901,0.00028953,7]
[342766443,1732121449478,-189.038901,0.00028953,7]
[342766444,1732121449488,-189.038901,0.00028953,7]
[342766445,1732121449498,-189.038899,0.00028953,7]
[342766446,1732121449508,-151.0,0.00028953,7]
[342766447,1732121449517,-151.0,0.00028953,7]
[342766448,1732121449527,-151.0,0.00028953,7]
[342766449,1732121449537,-151.0,0.00028953,7]
[342766450,1732121449546,-151.0,0.00028953,7]
[342766451,1732121449556,-151.0,0.00028953,7]
[342766452,1732121449565,-151.0,0.00028953,7]
[342766453,1732121449575,-151.0,0.00028953,7]
[342766454,1732121449584,-152.864727,0.00028953,7]
[342766455,1732121449594,-151.0,0.00028953,7]
[342766456,1732121449607,-151.0,0.00028953,7]
[342766457,1732121449618,-156.102638,0.00028953,7]
[342766458,1732121449628,-412.780375,0.00028953,7]
[342766459,1732121449638,-412.780375,0.00028953,7]
[342766460,1732121449648,-412.780375,0.00028953,7]
[342766461,1732121449659,-412.780375,0.00028953,7]
[342766462,1732121449668,-412.780375,0.00028953,7]
[342766463,1732121449679,-412.780375,0.00028953,7]
[342766464,1732121449689,-412.780375,0.00028953,7]
[342766465,1732121449700,-412.780375,0.00028953,7]
[342766466,1732121449710,-412.780375,0.00028953,7]
[342766467,1732121449720,-412.780375,0.00028953,7]
[342766468,1732121449729,-412.780375,0.00028953,7]
[342766469,1732121449739,-412.780375,0.00028953,7]
[342766470,1732121449749,-412.780375,0.00028953,7]
[342766471,1732121449758,-412.780375,0.00028953,7]
[342766472,1732121449767,-412.780375,0.00028953,7]
[342766473,1732121449776,-412.780375,0.00028953,7]
[342766474,1732121449785,-412.780375,0.00028953,7]
[342766475,1732121449795,-412.780375,0.00028953,7]
[342766476,1732121449805,-412.780375,0.00028953,7]
[342766477,1732121449814,-412.780383,0.00028953,7]
[342766478,1732121449823,-183.184068,0.00028955,7]
[342766479,1732121449833,-360.053168,0.00028955,7]
[342766480,1732121449843,-360.053168,0.00028955,7]
[342766481,1732121449856,-360.053168,0.00028955,7]
[342766482,1732121449866,-360.053168,0.00028955,7]
[342766483,1732121449876,-360.053168,0.00028955,7]
[342766484,1732121449886,-360.053168,0.00028955,7]
[342766485,1732121449896,-360.053168,0.00028955,7]
[342766486,1732121449906,-360.053168,0.00028955,7]
[342766487,1732121449915,-360.053168,0.00028955,7]
[342766488,1732121449925,-360.053168,0.00028955,7]
[342766489,1732121449935,-360.053168,0.00028955,7]
[342766490,1732121449944,-360.053168,0.00028955,7]
[342766491,1732121449953,-360.053177,0.00028955,7]
[342766492,1732121449963,-164.872446,0.00028956,7]
[342766493,1732121449972,-164.872446,0.00028956,7]
[342766494,1732121449982,-164.872446,0.00028956,7]
[342766495,1732121449991,-164.872446,0.00028956,7]
[342766496,1732121450000,-164.872446,0.00028956,7]
[342766497,1732121450009,-164.872446,0.00028956,7]
[342766498,1732121450021,-164.872446,0.00028956,7]
[342766499,1732121450030,-164.872446,0.00028956,7]
[342766500,1732121450039,-164.872446,0.00028956,7]
[342766501,1732121450049,-164.872446,0.00028956,7]
[342766502,1732121450058,-164.872446,0.00028956,7]
[342766503,1732121450067,-164.872446,0.00028956,7]
[342766504,1732121450077,-164.872446,0.00028956,7]
[342766505,1732121450086,-164.872446,0.00028956,7]
[342766506,1732121450096,-164.872446,0.00028956,7]
[342766507,1732121450109,-164.872446,0.00028956,7]
[342766508,1732121450119,-164.872446,0.00028956,7]
[342766509,1732121450128,-164.872446,0.00028956,7]
[342766510,1732121450139,-164.872446,0.00028956,7]
[342766511,1732121450152,-164.872443,0.00028956,7]
[342766512,1732121450161,-151.0,0.00028956,7]
[342766513,1732121450170,-151.0,0.00028956,7]
[342766514,1732121450181,-276.53058,0.00028956,7]
[342766515,1732121450192,-151.0,0.00028956,7]
[342766516,1732121450202,-151.033346,0.00028956,7]
[342766517,1732121450212,-185.319747,0.00028956,7]
[342766518,1732121450226,-191.40442,0.00028956,7]
[342766519,1732121450236,-191.40442,0.00028956,7]
[342766520,1732121450247,-191.40442,0.00028956,7]
[342766521,1732121450257,-191.40442,0.00028956,7]
[342766522,1732121450267,-191.40442,0.00028956,7]
[342766523,1732121450278,-191.40442,0.00028956,7]
[342766524,1732121450288,-191.40442,0.00028956,7]
[342766525,1732121450299,-191.40442,0.00028956,7]
[342766526,1732121450309,-191.40442,0.00028956,7]
[342766527,1732121450318,-191.40442,0.00028956,7]
[342766528,1732121450328,-191.40442,0.00028956,7]
[342766529,1732121450339,-191.40442,0.00028956,7]
[342766530,1732121450349,-191.40442,0.00028956,7]
[342766531,1732121450450,-191.40442,0.00028956,7]
[342766532,1732121450460,-191.40442,0.00028956,7]
[342766533,1732121450470,-191.40442,0.00028956,7]
[342766534,1732121450480,-191.40442,0.00028956,7]
[342766535,1732121450490,-191.40442,0.00028956,7]
[342766536,1732121450500,-191.40442,0.00028956,7]
[342766537,1732121450510,-191.40442,0.00028956,7]
[342766538,1732121450519,-200.112974,0.00028956,7]
[342766539,1732121450529,-200.112974,0.00028956,7]
[342766540,1732121450539,-200.112974,0.00028956,7]
[342766541,1732121450548,-200.112974,0.00028956,7]
[342766542,1732121450558,-200.112974,0.00028956,7]
[342766543,1732121450567,-200.112974,0.00028956,7]
[342766544,1732121450576,-200.112974,0.00028956,7]
[342766545,1732121450585,-200.112974,0.00028956,7]
[342766546,1732121450595,-200.112974,0.00028956,7]
[342766547,1732121450607,-151.0,0.00028956,7]
[342766548,1732121450617,-200.112974,0.00028956,7]
[342766549,1732121450626,-151.0,0.00028956,7]
[342766550,1732121450635,-200.112974,0.00028956,7]
[342766551,1732121450644,-200.112974,0.00028956,7]
[342766552,1732121450652,-151.0,0.00028956,7]
[342766553,1732121450662,-200.112974,0.00028956,7]
[342766554,1732121450671,-229.393939,0.00028956,7]
[342766555,1732121450680,-200.112974,0.00028956,7]
[342766556,1732121450690,-200.112974,0.00028956,7]
[342766557,1732121450699,-200.112974,0.00028956,7]
[342766558,1732121450708,-200.112974,0.00028956,7]
[342766559,1732121450718,-200.112974,0.00028956,7]
[342766560,1732121450727,-200.112974,0.00028956,7]
[342766561,1732121450736,-200.112977,0.00028956,7]
[342766562,1732121450746,-151.0,0.00028956,7]
[342766563,1732121450755,-151.0,0.00028956,7]
[342766564,1732121450764,-151.0,0.00028956,7]
[342766565,1732121450773,-151.0,0.00028956,7]
[342766566,1732121450782,-151.0,0.00028956,7]
[342766567,1732121450793,-151.0,0.00028956,7]
[342766568,1732121450802,-151.0,0.00028956,7]
[342766569,1732121450811,-151.0,0.00028956,7]
[342766570,1732121450820,-500.0,0.00028973,5]
[342766571,1732121450829,-500.0,0.00028973,5]
[342766572,1732121450838,-500.0,0.00028973,5]
[342766573,1732121450848,-151.0,0.00028979,7]
[342766574,1732121450860,-151.0,0.00028979,7]
[342766575,1732121450869,-151.0,0.00028979,7]
[342766576,1732121450879,-151.0,0.00028979,7]
[342766577,1732121450889,-151.0,0.00028979,7]
[342766578,1732121450898,-151.0,0.00028979,7]
[342766579,1732121450908,-151.0,0.00028979,7]
[342766580,1732121450917,-151.0,0.00028979,7]
[342766581,1732121450927,-151.0,0.00028979,7]
[342766582,1732121450936,-190.964908,0.00028979,7]
[342766583,1732121450945,-151.0,0.00028979,7]
[342766584,1732121450955,-151.0,0.00028979,7]
[342766585,1732121450965,-151.0,0.00028979,7]
[342766586,1732121450975,-151.0,0.00028979,7]
[342766587,1732121450984,-151.0,0.00028979,7]
[342766588,1732121450994,-151.0,0.00028979,7]
[342766589,1732121451005,-265.02531,0.00028979,7]
[342766590,1732121451014,-151.0,0.00028979,7]
[342766591,1732121451024,-179.462996,0.00028979,7]
[342766592,1732121451033,-179.462996,0.00028979,7]
[342766593,1732121451042,-179.462996,0.00028979,7]
[342766594,1732121451051,-179.462996,0.00028979,7]
[342766595,1732121451061,-179.462996,0.00028979,7]
[342766596,1732121451069,-179.462996,0.00028979,7]
[342766597,1732121451079,-179.462996,0.00028979,7]
[342766598,1732121451088,-179.462996,0.00028979,7]
[342766599,1732121451097,-179.462996,0.00028979,7]
[342766600,1732121451109,-179.462996,0.00028979,7]
[342766601,1732121451118,-179.462996,0.00028979,7]
[342766602,1732121451127,-179.462996,0.00028979,7]
[342766603,1732121451137,-179.462996,0.00028979,7]
[342766604,1732121451148,-179.462996,0.00028979,7]
[342766605,1732121451159,-179.462996,0.00028979,7]
[342766606,1732121451168,-179.462996,0.00028979,7]
[342766607,1732121451177,-179.462996,0.00028979,7]
[342766608,1732121451187,-179.462996,0.00028979,7]
[342766609,1732121451198,-179.462996,0.00028979,7]
[342766610,1732121451207,-179.462992,0.00028979,7]
[342766611,1732121451216,-151.0,0.00028979,7]
[342766612,1732121451227,-151.0,0.00028979,7]
[342766613,1732121451236,-228.092236,0.00028979,7]
[342766614,1732121451245,-151.0,0.00028979,7]
[342766615,1732121451254,-151.0,0.00028979,7]
[342766616,1732121451263,-151.0,0.00028979,7]
[342766617,1732121451272,-151.0,0.00028979,7]
[342766618,1732121451281,-151.0,0.00028979,7]
[342766619,1732121451291,-151.0,0.00028979,7]
[342766620,1732121451300,-151.0,0.00028979,7]
[342766621,1732121451309,-151.0,0.00028979,7]
[342766622,1732121451319,-151.0,0.00028979,7]
[342766623,1732121451329,-151.0,0.00028979,7]
[342766624,1732121451338,-151.0,0.00028979,7]
[342766625,1732121451347,-151.0,0.00028979,7]
[342766626,1732121451359,-200.178596,0.00028979,7]
[342766627,1732121451368,-375.712009,0.00028979,7]
[342766628,1732121451378,-375.712009,0.00028979,7]
[342766629,1732121451387,-375.712009,0.00028979,7]
[342766630,1732121451396,-375.712009,0.00028979,7]
[342766631,1732121451406,-375.712009,0.00028979,7]
[342766632,1732121451415,-375.712009,0.00028979,7]
[342766633,1732121451425,-375.712009,0.00028979,7]
[342766634,1732121451435,-375.712009,0.00028979,7]
[342766635,1732121451444,-375.712009,0.00028979,7]
[342766636,1732121451453,-375.712009,0.00028979,7]
[342766637,1732121451462,-375.712009,0.00028979,7]
[342766638,1732121451471,-375.712009,0.00028979,7]
[342766639,1732121451480,-375.712009,0.00028979,7]
[342766640,1732121451489,-375.712009,0.00028979,7]
[342766641,1732121451498,-375.712009,0.00028979,7]
[342766642,1732121451507,-375.712009,0.00028979,7]
[342766643,1732121451516,-375.712009,0.00028979,7]
[342766644,1732121451526,-375.712009,0.00028979,7]
[342766645,1732121451535,-375.712009,0.00028979,7]
[342766646,1732121451543,-375.712016,0.00028979,7]
[342766647,1732121451552,-560.224008,0.00028979,7]
[342766648,1732121451562,-560.224008,0.00028979,7]
[342766649,1732121451571,-560.224008,0.00028979,7]
[342766650,1732121451580,-560.224008,0.00028979,7]
[342766651,1732121451589,-560.224008,0.00028979,7]
[342766652,1732121451598,-560.224008,0.00028979,7]
[342766653,1732121451610,-560.224008,0.00028979,7]
[342766654,1732121451620,-560.224008,0.00028979,7]
[342766655,1732121451629,-560.224008,0.00028979,7]
[342766656,1732121451638,-560.224008,0.00028979,7]
[342766657,1732121451646,-560.224008,0.00028979,7]
[342766658,1732121451655,-560.224008,0.00028979,7]
[342766659,1732121451664,-560.224008,0.00028979,7]
[342766660,1732121451674,-560.224008,0.00028979,7]
[342766661,1732121451683,-560.224008,0.00028979,7]
[342766662,1732121451692,-560.224008,0.00028979,7]
[342766663,1732121451701,-560.224008,0.00028979,7]
[342766664,1732121451710,-560.224008,0.00028979,7]
[342766665,1732121451719,-560.224008,0.00028979,7]
[342766666,1732121451728,-560.224012,0.00028979,7]
[342766667,1732121451738,-151.0,0.00028979,7]
[342766668,1732121451747,-151.0,0.00028979,7]
[342766669,1732121451756,-151.0,0.00028979,7]
[342766670,1732121451765,-205.620192,0.00028979,7]
[342766671,1732121451774,-4557.82613294,0.00028999,2]
[342766672,1732121451783,-615.9316237,0.00028999,2]
[342766673,1732121451792,-615.9316237,0.00028999,2]
[342766674,1732121451802,-458242.55180057,0.00029,10]
[342766675,1732121451817,-18737.60305255,0.00029,10]
[342766676,1732121451828,-81566.33734656,0.00029,10]
[342766867,1732122638692,-600.0,0.00017466,6]
[342766868,1732122638703,-969.999955,0.00018,2]
[342766869,1732122638753,-4699.95,0.00018,2]
[342766870,1732122638766,-1345.675045,0.00018,2]
[342766871,1732122638776,-56.11872244,0.0002,2]
[342766935,1732122640462,-164.88127756,0.0002,2]
[342766936,1732122640472,-1352.2709479,0.00021291,2]
[342766937,1732122640482,-276.0418148,0.00021328,2]
[342766938,1732122640491,-300.0,0.00021813,2]
[342766939,1732122640501,-300.0,0.00021816,2]
[342766940,1732122640511,-342.60858328,0.00021817,2]
[342766941,1732122640521,-172.51690848,0.00021917,2]
[342766942,1732122640531,-501.35329268,0.00021917,2]
[342766943,1732122640545,-188.52881545,0.00021917,2]
[342766944,1732122640555,-421.39155925,0.00021917,2]
[342766945,1732122640570,-500.0,0.00021917,2]
[342766946,1732122640582,-500.0,0.00021917,2]
[342766947,1732122640594,-500.0,0.00021917,2]
[342766948,1732122640604,-450.44112456,0.00021917,2]
[342766949,1732122640615,-500.0,0.00021917,2]
[342766951,1732122640624,-500.0,0.00021917,2]
[342766953,1732122640634,-500.0,0.00021917,2]
[342766955,1732122640644,-500.0,0.00021917,2]
[342766957,1732122640654,-500.0,0.00021917,2]
[342766958,1732122640663,-500.0,0.00021917,2]
[342766959,1732122640673,-500.0,0.00021917,2]
[342766960,1732122640684,-500.0,0.00021917,2]
[342766961,1732122640694,-298.22795768,0.00021917,2]
[342766963,1732122640704,-500.0,0.00021917,2]
[342766964,1732122640714,-510.29226292,0.00021917,2]
[342766965,1732122640727,-500.0,0.00021917,2]
[342766966,1732122640738,-500.0,0.00021917,2]
[342766967,1732122640748,-500.0,0.00021917,2]
[342766968,1732122640758,-500.0,0.00021917,2]
[342766969,1732122640768,-496.42668977,0.00021917,2]
[342766970,1732122640778,-500.82589926,0.00021917,2]
[342766971,1732122640788,-543.58534309,0.00021917,2]
[342766972,1732122640798,-500.0,0.00021917,2]
[342766973,1732122640808,-500.0,0.00021917,2]
[342766974,1732122640823,-503.01942539,0.00021917,2]
[342766975,1732122640833,-500.0,0.00021917,2]
[342766976,1732122640843,-500.0,0.00021917,2]
[342766977,1732122640853,-308.9407756,0.00021917,2]
[342766978,1732122640863,-500.0,0.00021917,2]
[342766979,1732122640873,-500.0,0.00021917,2]
[342766980,1732122640882,-500.0,0.00021917,2]
[342766981,1732122640892,-350.29,0.00021917,2]
[342766982,1732122640902,-464.76162965,0.00021917,2]
[342766983,1732122640913,-500.0,0.00021917,2]
[342766984,1732122640923,-524.46231481,0.00021917,2]
[342766985,1732122640933,-599.92,0.00021917,2]
[342766986,1732122640943,-500.0,0.00021917,2]
[342766987,1732122640954,-500.0,0.00021917,2]
[342766988,1732122640964,-500.0,0.00021917,2]
[342766989,1732122640974,-502.32942552,0.00021917,2]
[342766990,1732122640984,-500.0,0.00021917,2]
[342766991,1732122640995,-500.0,0.00021917,2]
[342766992,1732122641004,-500.0,0.00021917,2]
[342766993,1732122641014,-9444.67,0.00021917,2]
[342766994,1732122641024,-500.0,0.00021917,2]
[342766995,1732122641034,-516.2853663,0.00021917,2]
[342766996,1732122641045,-500.0,0.00021917,2]
[342766997,1732122641055,-500.0,0.00021917,2]
[342766998,1732122641067,-500.0,0.00021917,2]
[342766999,1732122641077,-505.26573252,0.00021917,2]
[342767000,1732122641087,-500.0,0.00021917,2]
[342767001,1732122641097,-500.0,0.00021917,2]
[342767002,1732122641107,-500.0,0.00021917,2]
[342767003,1732122641117,-500.0,0.00021917,2]
[342767004,1732122641127,-500.0,0.00021917,2]
[342767005,1732122641136,-534.23,0.00021917,2]
[342767006,1732122641146,-500.0,0.00021917,2]
[342767007,1732122641156,-500.0,0.00021917,2]